bitfinex/quotes_ETHUSD_20241124
["timestamp","ask_amount","ask_price","bid_price","bid_amount"]
[1732447781164,0.58173532,3351.2,3349.9,0.2966]
[1732447781329,0.58173532,3351.2,3349.8,1.191481]
[1732447783252,0.58173532,3351.2,3349.6,0.36182611]
[1732447783567,0.58173532,3351.2,3349.7,1.191508]
[1732447783770,0.55,3351.0,3349.7,1.191508]
[1732447783929,0.55,3351.0,3350.3,3.0]
[1732447784166,0.55,3350.8,3349.4,1.191609]
[1732447784510,3.87463975,3350.7,3349.4,1.191609]
[1732447784690,4.91166748,3350.6,3349.4,1.191609]
[1732447784897,0.03154327,3350.5,3349.4,1.191609]
[1732447785206,0.03154327,3350.5,3347.8,1.3347]
[1732447785207,0.55,3350.1,3347.8,1.3347]
[1732447785377,0.55,3349.9,3348.3,1.192023]
[1732447785576,0.55,3349.4,3347.2,0.2966]
[1732447785791,0.55,3349.2,3347.3,0.19848405]
[1732447786099,0.03110117,3349.1,3347.3,0.19848405]
[1732447786309,0.55,3348.8,3347.1,0.36519727]
[1732447786509,0.55,3348.8,3346.6,1.36456855]
[1732447786510,0.55,3348.8,3346.6,1.3347]
[1732447786663,0.55,3348.6,3346.6,1.70318538]
[1732447786863,0.55,3348.4,3346.6,1.70318538]
[1732447787112,0.55,3348.4,3346.7,0.55]
[1732447787268,0.0307747,3348.3,3346.7,0.55]
[1732447788263,0.0307747,3348.3,3346.7,0.57987755]
[1732447788464,0.0307747,3348.3,3346.7,0.55]
[1732447788666,0.55,3348.2,3346.8,0.52531854]
[1732447788908,0.03055795,3348.1,3346.7,0.55]
[1732447790072,3.87463975,3348.5,3346.8,1.36457372]
[1732447790272,3.87463975,3348.5,3346.9,0.24937608]
[1732447791302,3.87463975,3349.3,3346.9,0.24937608]
[1732447791477,4.42463975,3349.2,3346.9,0.24937608]
[1732447791806,0.0306068,3349.1,3347.0,0.24779718]
[1732447793604,0.0306068,3349.1,3346.8,0.3648286]
[1732447793605,0.55,3348.9,3346.8,0.3648286]
[1732447793809,0.55,3348.6,3346.8,0.3648286]
[1732447793965,0.55,3348.4,3346.7,0.55]
[1732447794174,3.87463975,3348.3,3346.7,0.55]
[1732447794577,4.45526181,3348.2,3346.7,0.55]
[1732447795011,4.45526181,3348.2,3346.7,0.91027141]
[1732447799177,4.45526181,3348.2,3346.7,0.55]
[1732447800093,4.45526181,3348.2,3346.9,3.0]
[1732447800327,3.87463975,3348.1,3346.8,1.3645782]
[1732447800491,3.87463975,3348.1,3346.9,0.22726463]
[1732447801004,0.03062206,3348.2,3347.5,3.0]
[1732447801207,0.03062206,3348.2,3347.3,3.0]
[1732447801208,3.87463975,3348.1,3347.3,3.0]
[1732447801417,3.87463975,3348.1,3346.7,0.55]
[1732447801418,0.39052618,3348.0,3346.7,0.55]
[1732447801710,0.39052618,3348.0,3345.9,0.1487114]
[1732447801711,0.55,3347.8,3345.9,0.1487114]
[1732447801916,0.55,3347.6,3346.0,0.55]
[1732447802210,0.55,3347.6,3346.0,0.57988475]
[1732447802410,0.55,3347.6,3346.1,1.3761]
[1732447802713,0.55,3347.6,3346.7,3.0]
[1732447802897,3.87463975,3347.5,3346.0,0.55]
[1732447803104,3.87463975,3347.4,3346.0,0.75748114]
[1732447803275,4.42463975,3347.3,3346.0,0.75748114]
[1732447803875,3.87463975,3347.3,3346.1,0.02988661]
[1732447804133,3.87463975,3347.3,3346.0,1.12547611]
[1732447805986,0.55,3348.0,3346.2,1.3761]
[1732447806173,3.87463975,3348.1,3346.3,0.32648066]
[1732447806407,0.03062206,3348.2,3346.9,1.3761]
[1732447806408,3.87463975,3348.0,3346.9,1.3761]
[1732447806609,0.03062206,3348.2,3346.9,1.6727]
[1732447807024,0.03062206,3348.2,3347.0,0.02987507]
[1732447807335,0.03062206,3348.2,3348.1,3.0]
[1732447807498,0.03062206,3348.2,3347.2,0.2966]
[1732447807499,0.03062206,3348.2,3347.3,0.02986842]
[1732447807831,0.03062206,3348.2,3347.2,0.2966]
[1732447808185,0.03062206,3348.2,3346.6,0.2966]
[1732447808384,0.03062206,3348.2,3346.8,0.2966]
[1732447808621,0.03062206,3348.2,3346.9,0.02987603]
[1732447808794,0.03062206,3348.2,3346.8,0.2966]
[1732447809412,0.03062206,3348.2,3348.0,3.0]
[1732447809617,0.03062206,3348.2,3348.1,0.3]
[1732447809797,0.03062206,3348.2,3347.5,1.3761]
[1732447810523,3.87463975,3350.1,3347.4,0.2966]
[1732447810814,3.87463975,3350.0,3348.0,1.3761]
[1732447811236,3.87463975,3350.0,3348.7,3.0]
[1732447811391,3.87463975,3349.9,3348.7,3.0]
[1732447811594,0.38746398,3349.8,3348.0,1.3761]
[1732447811902,3.87463975,3349.7,3349.0,3.0]
[1732447812100,3.87463975,3350.8,3349.0,3.0]
[1732447812305,3.87463975,3350.7,3349.0,3.0]
[1732447812502,3.87463975,3350.7,3348.0,1.3761]
[1732447812503,0.78492795,3350.6,3348.0,1.3761]
[1732447812831,3.87463975,3350.5,3348.0,1.3761]
[1732447813042,3.87463975,3350.5,3347.7,1.3761]
[1732447813192,0.55,3350.3,3347.7,1.3761]
[1732447813392,0.47595677,3350.4,3347.7,1.3761]
[1732447813600,0.47595677,3350.4,3348.9,3.0]
[1732447813923,3.87463975,3350.3,3347.8,0.02986605]
[1732447814133,3.87463975,3350.2,3347.7,1.3761]
[1732447814361,3.87463975,3350.2,3347.6,1.3761]
[1732447814362,0.38746398,3350.1,3347.6,1.3761]
[1732447814721,0.55,3350.0,3348.7,3.0]
[1732447815033,0.55,3350.0,3347.7,0.02986712]
[1732447815034,0.55,3349.8,3347.7,0.02986712]
[1732447815236,0.1,3350.9,3348.7,3.0]
[1732447815237,3.87463975,3349.7,3348.7,3.0]
[1732447815455,0.38746398,3349.6,3347.7,0.02986712]
[1732447815669,0.1,3350.9,3347.7,0.02986712]
[1732447815670,3.87463975,3350.7,3348.7,3.0]
[1732447815834,0.1,3350.9,3347.9,0.02986222]
[1732447815835,0.1,3350.5,3347.9,0.02986222]
[1732447816031,0.1,3350.5,3347.9,0.19559671]
[1732447816032,3.87463975,3350.4,3347.9,0.19559671]
[1732447816335,3.87463975,3350.4,3347.8,1.3761]
[1732447816767,0.55,3350.3,3348.7,3.0]
[1732447817077,0.55,3350.3,3347.9,0.02986458]
[1732447817078,0.55,3350.1,3349.0,3.0]
[1732447817226,0.55,3350.1,3348.0,0.20969852]
[1732447817427,0.55,3349.9,3348.0,0.20969852]
[1732447817628,0.44246398,3349.8,3349.0,3.0]
[1732447817821,0.47133913,3349.8,3348.6,1.3761]
[1732447818057,0.02887515,3349.8,3348.6,1.3761]
[1732447818431,3.87463975,3351.2,3349.5,3.0]
[1732447818658,3.87463975,3351.1,3348.7,0.02985913]
[1732447818863,3.87463975,3351.0,3349.5,3.0]
[1732447819066,3.87463975,3350.9,3348.6,1.3761]
[1732447819235,3.87463975,3350.8,3348.6,1.73522367]
[1732447819561,3.90396047,3350.8,3349.5,3.0]
[1732447819766,3.87463975,3350.7,3348.6,1.73522367]
[1732447819929,3.87463975,3350.6,3348.7,0.17352237]
[1732447820362,0.57932072,3350.5,3348.7,0.17352237]
[1732447820561,0.57932072,3350.5,3348.2,1.3761]
[1732447821143,0.57932072,3350.5,3349.1,3.0]
[1732447821367,0.57932072,3350.5,3348.2,1.3761]
[1732447821535,0.55,3350.3,3349.1,3.0]
[1732447821743,0.55,3350.3,3348.3,0.500568]
[1732447821968,0.02983645,3350.2,3348.3,0.47070801]
[1732447822277,0.02983645,3350.2,3348.4,0.51501634]
[1732447822773,0.02983645,3350.2,3349.2,3.0]
[1732447823132,0.02983645,3350.2,3348.4,0.51501634]
[1732447823133,0.02983645,3350.2,3348.4,0.4786957]
[1732447823367,0.02983645,3350.2,3349.2,3.0]
[1732447823578,0.02983645,3350.2,3348.5,0.23961181]
[1732447824074,0.02983645,3350.2,3348.6,0.66381554]
[1732447824244,0.02983645,3350.2,3348.8,0.2966]
[1732447824450,0.02983645,3350.2,3348.9,0.02985434]
[1732447824746,3.87463975,3350.5,3349.1,0.2966]
[1732447825068,3.87463975,3350.5,3349.8,3.0]
[1732447825373,0.0298212,3350.4,3349.8,1.4536]
[1732447825587,3.87463975,3351.8,3349.9,0.2966]
[1732447825885,3.90352382,3351.7,3349.9,0.2966]
[1732447826071,3.90352382,3351.7,3350.0,0.02984808]
[1732447826244,0.39035238,3351.6,3350.0,0.24400753]
[1732447826449,0.39035238,3351.6,3350.0,0.21415945]
[1732447826724,0.39035238,3351.6,3350.4,1.4536]
[1732447826850,0.02888407,3351.5,3351.1,3.0]
[1732447827049,0.02888407,3351.5,3351.2,0.1926244]
[1732447827262,0.02888407,3351.5,3349.9,1.4536]
[1732447827263,0.1,3352.7,3349.9,1.4536]
[1732447827490,4.28210373,3352.6,3350.0,0.19251699]
[1732447827659,4.3109878,3352.6,3350.8,3.0]
[1732447827977,4.3109878,3352.6,3350.9,0.19251699]
[1732447827978,0.1,3352.1,3350.9,0.19251699]
[1732447828162,0.55,3352.3,3349.2,0.39215333]
[1732447828364,0.55,3352.1,3349.3,0.19249195]
[1732447828566,0.55,3352.1,3349.4,0.19249195]
[1732447828882,0.02925642,3352.0,3350.4,3.0]
[1732447829078,0.55,3351.8,3350.5,0.19249195]
[1732447829332,0.55,3351.8,3350.6,0.19249195]
[1732447829528,0.55,3351.8,3350.5,3.0]
[1732447829689,0.02925642,3351.7,3350.6,0.19245094]
[1732447829895,0.55,3351.6,3349.1,1.48345157]
[1732447830117,0.55,3351.4,3349.2,0.192469]
[1732447830322,0.55,3351.4,3349.3,0.1646069]
[1732447830323,0.1969,3351.1,3349.3,0.1646069]
[1732447830495,0.55,3350.8,3349.1,1.50185875]
[1732447830696,0.55,3350.4,3349.1,1.50185875]
[1732447831088,0.02913437,3350.3,3349.1,1.50185875]
[1732447831831,0.1969,3350.0,3348.3,0.2966]
[1732447832032,0.55,3349.9,3348.4,0.02985661]
[1732447832204,0.02913437,3349.8,3348.4,0.02985661]
[1732447832540,0.02913437,3349.8,3348.4,0.33735536]
[1732447832541,0.2003,3349.7,3348.4,0.33735536]
[1732447832703,0.02913437,3349.8,3348.3,0.35879388]
[1732447832704,0.2003,3349.6,3348.3,0.35879388]
[1732447832908,0.2003,3349.4,3348.0,0.33735536]
[1732447833128,0.2003,3349.4,3348.0,0.69588721]
[1732447833332,0.2003,3349.4,3348.0,1.79095536]
[1732447833333,0.02895123,3349.3,3348.0,1.79095536]
[1732447833565,0.57895123,3349.3,3348.0,1.97303679]
[1732447833853,0.02895123,3349.2,3348.0,1.97303679]
[1732447834418,0.02895123,3349.2,3348.0,2.00289937]
[1732447834761,0.55,3349.3,3348.1,0.2372886]
[1732447835052,0.02895123,3349.2,3348.1,0.2372886]
[1732447835471,0.54041232,3349.3,3348.2,0.02986261]
[1732447835620,0.54041232,3349.3,3348.2,0.23567327]
[1732447836022,0.2003,3349.2,3349.0,3.0]
[1732447836329,0.2003,3349.2,3348.0,1.4536]
[1732447836663,0.2003,3349.2,3348.0,1.66582126]
[1732447837017,0.2003,3349.2,3348.0,1.63595867]
[1732447837218,0.2003,3349.2,3348.0,1.66582125]
[1732447837756,0.2003,3350.0,3348.2,1.3921]
[1732447837965,0.2003,3349.8,3349.5,3.0]
[1732447838118,0.2003,3349.8,3348.3,0.25571092]
[1732447838552,0.2003,3349.6,3349.5,3.0]
[1732447838927,0.2003,3349.6,3348.2,1.3921]
[1732447839532,0.2003,3349.6,3349.5,3.0]
[1732447839735,0.7503,3349.3,3349.2,3.0]
[1732447840060,0.7503,3349.2,3347.6,1.42195888]
[1732447840364,0.7503,3349.2,3347.6,1.75931424]
[1732447840578,0.2003,3349.1,3347.6,1.75931424]
[1732447840775,0.2003,3349.1,3347.7,0.54931762]
[1732447841138,0.2003,3349.1,3347.8,0.02986456]
[1732447841338,0.2003,3349.1,3347.9,0.33735536]
[1732447841566,0.02871308,3349.0,3347.9,0.33735536]
[1732447841769,0.2003,3349.1,3348.0,0.02986303]
[1732447842279,0.2003,3349.1,3348.1,0.19132985]
[1732447842578,0.2003,3349.1,3348.0,0.02986303]
[1732447842579,0.2003,3349.1,3348.2,0.19132985]
[1732447842746,0.2003,3349.1,3348.3,0.19132985]
[1732447842953,0.2003,3349.1,3348.4,0.19132985]
[1732447843258,0.2003,3349.1,3348.5,0.19132985]
[1732447843440,0.2003,3349.1,3349.0,3.0]
[1732447843639,0.2003,3348.8,3347.6,0.36435762]
[1732447843842,0.2003,3348.8,3347.7,0.19138679]
[1732447844074,0.2003,3348.6,3347.8,0.19139249]
[1732447844336,0.55,3348.5,3347.9,0.19139249]
[1732447844479,0.55,3348.5,3347.3,1.78950841]
[1732447844480,0.2003,3348.4,3348.0,0.19139249]
[1732447844641,0.22901308,3348.4,3348.1,0.19139249]
[1732447844980,0.22901308,3348.4,3348.2,0.19139249]
[1732447845180,0.22901308,3348.4,3348.3,0.19139249]
[1732447845980,0.2003,3348.4,3348.3,0.19139249]
[1732447846285,0.02826713,3348.4,3348.3,0.19139249]
[1732447846694,0.2003,3348.6,3348.3,0.19139249]
[1732447847003,0.02824575,3348.4,3348.1,0.36155179]
[1732447847150,0.02824575,3348.4,3347.5,0.2966]
[1732447847350,0.2003,3348.6,3347.7,0.2966]
[1732447847580,0.2003,3348.6,3347.8,0.85514733]
[1732447847857,0.2003,3348.6,3347.9,1.62522744]
[1732447848114,0.2003,3350.0,3348.0,1.08106559]
[1732447848400,0.2003,3349.8,3348.1,0.48792744]
[1732447848605,0.2003,3349.6,3348.3,0.2966]
[1732447848807,0.2003,3349.6,3348.2,0.19132744]
[1732447848808,0.2003,3349.6,3348.5,0.2966]
[1732447848961,0.02824575,3349.5,3348.6,0.19132744]
[1732447849166,0.02824575,3349.5,3348.7,0.19132744]
[1732447849393,0.02824575,3349.5,3348.5,0.2966]
[1732447849394,0.2003,3349.4,3348.8,0.19132744]
[1732447849565,0.2003,3349.4,3348.9,0.19132744]
[1732447849758,0.55,3349.3,3349.1,3.0]
[1732447849963,0.2003,3348.9,3348.6,0.2966]
[1732447850199,0.2003,3348.9,3348.7,0.19127939]
[1732447850361,0.2003,3348.9,3348.6,0.2966]
[1732447850362,0.57838932,3348.8,3348.6,0.2966]
[1732447850999,0.57838932,3348.8,3348.7,0.19127146]
[1732447851847,0.77868932,3348.8,3348.7,0.19127146]
[1732447851983,0.77868932,3348.8,3348.2,0.48787146]
[1732447852172,0.7503,3348.8,3348.4,0.2966]
[1732447852375,0.7503,3348.8,3348.5,0.19127146]
[1732447852598,0.7503,3348.8,3348.6,0.19127146]
[1732447852599,0.57833434,3348.7,3348.6,0.19127146]
[1732447854063,0.02833434,3348.7,3348.6,0.19127146]
[1732447854260,0.2003,3348.8,3348.6,0.19127146]
[1732447854463,0.2003,3348.8,3348.7,0.19127146]
[1732447856075,0.7503,3348.8,3348.7,0.19127146]
[1732447856271,0.2003,3348.8,3348.7,0.19127146]
[1732447857487,0.2003,3348.8,3348.7,0.19143957]
[1732447857689,0.55,3349.8,3348.8,3.0]
[1732447857904,0.55,3350.0,3348.4,1.632]
[1732447857905,0.55,3349.6,3348.9,0.19143957]
[1732447858098,0.55,3349.6,3349.0,0.19143957]
[1732447858274,0.55,3349.6,3349.1,0.19143957]
[1732447858479,0.1,3351.0,3348.4,1.632]
[1732447858480,0.2003,3349.4,3349.2,0.19143957]
[1732447858682,0.2003,3349.4,3349.3,0.19143957]
[1732447858925,0.2003,3349.4,3348.4,1.632]
[1732447859088,0.2003,3349.4,3348.5,0.48812651]
[1732447859293,0.2003,3349.4,3348.6,0.19152651]
[1732447859505,0.2003,3349.4,3349.1,3.0]
[1732447859692,0.2003,3349.4,3348.6,0.24777039]
[1732447859693,0.2003,3349.4,3349.2,0.19152651]
[1732447859903,0.2003,3349.4,3348.5,0.63395536]
[1732447859904,0.2003,3349.4,3349.3,0.19152651]
[1732447860087,0.2003,3349.4,3349.3,3.19152651]
[1732447860289,0.2003,3349.4,3349.3,0.19152651]
[1732447860919,0.2003,3349.4,3348.7,0.35803167]
[1732447861103,0.2003,3349.4,3348.8,0.20708855]
[1732447861278,0.2003,3349.4,3349.2,3.0]
[1732447861483,0.7503,3349.4,3349.3,0.20708855]
[1732447861919,0.77867406,3349.4,3349.3,0.20708855]
[1732447862422,0.2065,3348.9,3347.4,1.4026]
[1732447862623,0.55,3348.6,3347.0,1.4026]
[1732447862779,0.55,3348.4,3347.1,0.20567871]
[1732447863115,0.02842904,3348.3,3347.2,0.33735536]
[1732447863327,0.02842904,3348.3,3347.2,0.2966]
[1732447864283,0.55,3348.1,3347.2,0.2966]
[1732447864829,0.02818157,3348.0,3347.2,0.2966]
[1732447864989,0.02818157,3348.0,3347.2,0.50355785]
[1732447865386,0.2065,3348.6,3347.4,1.7454]
[1732447865618,0.2065,3348.6,3347.5,0.52469113]
[1732447865817,0.2065,3348.6,3347.5,3.86204649]
[1732447866315,0.2065,3348.6,3347.5,0.49482284]
[1732447866524,0.2065,3348.6,3347.5,0.52469036]
[1732447866850,0.02814185,3348.5,3347.7,0.2966]
[1732447867118,0.2065,3350.5,3348.8,1.4488]
[1732447867335,0.2065,3350.3,3348.9,0.32645828]
[1732447867483,0.40811398,3350.2,3348.9,0.32645828]
[1732447867885,0.02805935,3350.1,3349.8,3.0]
[1732447868094,0.02805935,3350.1,3348.9,0.2966]
[1732447868420,0.2065,3350.0,3348.9,0.2966]
[1732447869591,0.2065,3350.0,3348.9,0.47114]
[1732447869779,0.2065,3350.0,3348.9,0.83298442]
[1732447870288,0.2065,3350.0,3348.9,0.65844442]
[1732447870713,0.55,3349.9,3348.9,0.65844442]
[1732447871155,0.02844722,3349.8,3348.9,0.65844442]
[1732447871846,0.55,3349.6,3348.3,0.2966]
[1732447872059,0.55,3349.6,3348.3,0.76774]
[1732447872230,0.55,3349.6,3348.3,0.2966]
[1732447872412,0.55,3349.6,3348.3,0.65840829]
[1732447872617,0.55,3349.6,3348.3,0.2966]
[1732447872927,0.2065,3349.5,3348.3,0.2966]
[1732447873129,0.55,3349.2,3348.0,0.2966]
[1732447873459,0.7565,3348.6,3346.9,1.4148]
[1732447873667,0.55,3348.4,3346.9,1.4148]
[1732447873831,0.55,3348.2,3346.9,1.4148]
[1732447874211,0.55,3348.2,3346.2,0.02987266]
[1732447874212,4.08113975,3348.1,3346.6,0.2966]
[1732447874450,4.42463975,3348.0,3346.7,0.2044172]
[1732447874612,0.55,3347.7,3346.1,1.4148]
[1732447874821,0.55,3347.7,3346.1,1.69156985]
[1732447875244,0.55,3347.5,3346.2,0.2966]
[1732447875954,0.55,3347.5,3346.1,0.62986988]
[1732447876256,0.2065,3347.6,3346.1,0.35310003]
[1732447876257,0.55,3347.3,3346.1,0.35310003]
[1732447876417,0.51811398,3347.4,3346.2,0.02988154]
[1732447876620,0.2065,3347.6,3346.2,0.3467133]
[1732447876953,0.2065,3347.6,3346.3,1.4148]
[1732447877141,0.55,3347.5,3346.0,0.90474859]
[1732447877461,0.55,3347.1,3346.0,0.90474859]
[1732447877751,0.2065,3347.2,3346.0,0.90474859]
[1732447877957,0.2065,3347.2,3346.0,1.58881758]
[1732447878530,0.2065,3347.2,3346.0,4.27198582]
[1732447878940,0.2065,3347.2,3346.0,4.58881758]
[1732447879118,0.2065,3347.2,3346.1,0.6152329]
[1732447879319,0.55,3347.1,3346.0,0.90474859]
[1732447880347,0.55,3347.1,3346.0,0.55]
[1732447880728,0.55,3347.1,3346.9,3.0]
[1732447880933,0.55,3347.1,3346.0,0.55]
[1732447881133,0.2065,3347.0,3346.9,3.0]
[1732447881332,0.2065,3347.0,3346.0,0.55]
[1732447881940,0.02736244,3346.9,3346.2,1.388]
[1732447882163,0.2065,3347.5,3346.3,0.68406284]
[1732447882328,0.2065,3347.5,3346.3,0.59208264]
[1732447883071,0.2065,3347.5,3346.3,0.56220692]
[1732447883270,0.2065,3347.5,3346.3,0.59208295]
[1732447883430,0.2065,3347.9,3346.4,0.65418712]
[1732447883626,0.2065,3347.9,3346.6,1.388]
[1732447883825,0.2065,3347.9,3346.7,0.02987294]
[1732447886172,0.2065,3347.9,3346.7,0.32757294]
[1732447886467,0.2065,3347.9,3346.8,0.17155729]
[1732447886775,0.2065,3347.9,3346.9,0.32757292]
[1732447887067,0.2065,3349.2,3347.0,1.6857]
[1732447887368,0.40811398,3349.1,3347.2,0.2977]
[1732447887581,0.2065,3349.2,3347.4,0.2977]
[1732447887877,0.2065,3349.2,3347.6,0.2977]
[1732447888169,0.2065,3349.2,3347.6,0.32756392]
[1732447888371,0.2065,3349.2,3348.9,3.0]
[1732447889069,0.2065,3349.2,3347.8,0.2977]
[1732447889225,0.2065,3349.2,3348.0,0.2977]
[1732447890287,0.7565,3349.1,3348.0,0.2977]
[1732447890586,0.2065,3348.9,3348.0,0.2977]
[1732447891294,0.02821215,3348.8,3347.7,0.35614984]
[1732447891644,0.02821215,3348.8,3347.3,0.02986537]
[1732447891841,0.02821215,3348.8,3347.3,0.46627]
[1732447891842,0.57821215,3348.8,3347.3,0.46627]
[1732447892081,0.2074,3348.7,3347.3,0.46627]
[1732447892246,0.55,3349.1,3347.2,0.36413818]
[1732447892247,0.2074,3348.5,3347.2,0.36413818]
[1732447892449,0.1,3350.0,3346.8,0.53878051]
[1732447892450,0.55,3348.2,3346.8,0.17155729]
[1732447892767,0.55,3347.8,3346.4,1.75662033]
[1732447892968,0.55,3347.6,3346.1,2.56733078]
[1732447893180,0.55,3347.4,3346.2,0.06830776]
[1732447893483,0.55,3347.2,3346.2,0.06830776]
[1732447893849,0.02800436,3347.1,3346.2,0.06830776]
[1732447894242,0.55,3347.2,3346.2,0.06830776]
[1732447894681,0.2074,3347.3,3346.2,0.37283703]
[1732447894982,0.55,3347.2,3346.1,2.93146896]
[1732447895685,0.2074,3347.3,3346.1,2.96135018]
[1732447895980,0.2074,3347.3,3346.2,3.36600616]
[1732447896166,0.2074,3347.3,3346.3,0.02987651]
[1732447896346,0.2074,3347.3,3346.1,0.36413818]
[1732447896347,0.2074,3347.3,3346.1,0.39401469]
[1732447896548,0.2074,3347.3,3346.1,0.36413818]
[1732447896775,0.2074,3347.3,3346.2,0.02987817]
[1732447897095,0.2074,3347.3,3346.1,0.02987659]
[1732447897382,0.2074,3347.3,3346.1,0.02987998]
[1732447897744,0.55,3347.2,3346.0,0.90831938]
[1732447897946,0.55,3347.2,3346.0,1.3170103]
[1732447898185,0.55,3347.2,3346.0,0.90831938]
[1732447898396,0.2074,3347.1,3346.0,0.90831938]
[1732447898547,0.55,3347.0,3346.0,0.90831938]
[1732447899071,0.2074,3347.1,3346.0,0.93820197]
[1732447899448,0.2074,3347.1,3346.1,0.33735536]
[1732447899678,0.2074,3347.1,3346.2,0.02987772]
[1732447900195,0.2074,3347.1,3346.2,0.36723308]
[1732447900748,0.2074,3347.1,3346.2,0.17410956]
[1732447900989,0.2074,3347.1,3346.3,0.02987647]
[1732447901281,0.2074,3347.1,3346.3,0.32757647]
[1732447901794,0.2074,3347.1,3346.3,0.2977]
[1732447902163,0.2074,3347.1,3346.1,0.2977]
[1732447902591,0.2074,3347.1,3346.0,0.90831938]
[1732447903592,0.55,3347.0,3346.0,0.90831938]
[1732447903776,0.57732574,3347.0,3346.0,0.90831938]
[1732447903980,0.57732574,3347.0,3346.6,3.0]
[1732447903981,0.2074,3346.9,3346.6,3.0]
[1732447904171,0.55,3346.8,3346.0,0.90831938]
[1732447904373,0.57732574,3346.8,3346.0,0.90831938]
[1732447904611,0.2074,3346.7,3346.0,0.90831938]
[1732447904903,0.23472574,3346.7,3346.0,0.90831938]
[1732447906426,0.53171037,3348.7,3346.1,0.02988206]
[1732447906427,0.2074,3347.1,3346.1,0.02988206]
[1732447908386,0.2074,3347.1,3346.1,0.32758206]
[1732447908524,0.43171037,3348.7,3346.1,0.32758206]
[1732447908525,0.2074,3348.4,3346.1,0.32758206]
[1732447908838,0.02735938,3347.0,3346.3,1.7017]
[1732447909039,0.2074,3348.4,3346.5,0.2977]
[1732447909242,0.2074,3348.4,3346.6,0.66492766]
[1732447909455,0.02737161,3348.3,3346.6,0.66492766]
[1732447909765,0.2074,3348.4,3346.6,0.66492766]
[1732447910326,0.2074,3348.4,3346.6,0.32756975]
[1732447910531,0.2074,3348.2,3346.6,0.02986975]
[1732447910829,0.2074,3348.2,3346.6,0.47085698]
[1732447911042,0.2074,3348.2,3346.7,0.02987219]
[1732447912871,0.55,3348.0,3346.6,0.47085698]
[1732447913071,0.2074,3348.2,3346.6,0.47085698]
[1732447914370,3.87463975,3348.2,3346.6,0.47085698]
[1732447914538,0.2074,3348.0,3346.6,0.47085698]
[1732447915157,0.2074,3348.0,3346.6,0.2977]
[1732447915338,0.57748803,3347.9,3346.6,0.2977]
[1732447915541,0.2074,3347.8,3346.6,0.2977]
[1732447915775,0.23482688,3347.8,3346.6,0.2977]
[1732447916077,0.2074,3347.6,3346.6,0.2977]
[1732447916253,0.2074,3347.6,3346.5,0.36918993]
[1732447916597,0.2074,3347.6,3346.1,0.3275776]
[1732447916598,0.02742688,3347.5,3346.3,0.33735791]
[1732447916756,0.02742688,3347.5,3346.2,0.87757906]
[1732447917145,0.02742688,3347.5,3346.2,0.32757906]
[1732447917345,0.02742688,3347.5,3347.4,3.0]
[1732447917650,0.02742688,3347.5,3346.3,0.02987633]
[1732447917848,0.02742688,3347.5,3347.2,3.0]
[1732447918075,0.2074,3347.6,3347.2,3.0]
[1732447918278,0.2074,3347.6,3347.4,3.0]
[1732447918447,0.2074,3347.6,3346.7,0.0298744]
[1732447918647,0.2074,3347.6,3346.8,0.55]
[1732447918856,0.2074,3348.5,3346.9,0.32757251]
[1732447919077,0.40820398,3348.4,3346.9,0.32757251]
[1732447919248,0.02742688,3348.4,3346.9,0.32757251]
[1732447919445,0.02742688,3348.4,3347.1,0.2977]
[1732447919693,0.02742688,3348.4,3347.2,0.02986981]
[1732447920098,0.02742688,3348.4,3347.4,0.2977]
[1732447920262,0.02742688,3348.4,3347.5,0.17315698]
[1732447920462,4.08203975,3348.5,3347.5,0.17315698]
[1732447920692,0.2074,3348.5,3347.5,0.17315698]
[1732447920994,3.87463975,3349.8,3347.8,0.2977]
[1732447921290,0.1,3350.8,3348.7,3.0]
[1732447921291,0.38746398,3349.7,3348.7,3.0]
[1732447921495,0.1,3350.8,3348.0,1.936]
[1732447921496,3.87463975,3350.4,3348.0,1.936]
[1732447921784,3.87463975,3350.3,3348.1,0.23251945]
[1732447922293,3.87463975,3350.3,3348.9,3.0]
[1732447922460,3.87463975,3350.2,3348.9,3.0]
[1732447922656,3.87463975,3350.2,3347.8,0.57986145]
[1732447922860,4.26210373,3350.1,3348.1,0.55]
[1732447923066,4.26210373,3350.1,3347.7,1.75629]
[1732447923067,3.87463975,3350.1,3347.7,1.75629]
[1732447923298,0.1,3349.9,3347.7,0.37029]
[1732447923480,0.45246397,3349.8,3347.7,0.37029]
[1732447923652,0.45246397,3349.8,3347.3,0.0298678]
[1732447924367,0.45246397,3349.8,3347.0,1.77519955]
[1732447924551,0.45246397,3349.8,3347.1,0.55]
[1732447924552,3.87463975,3349.7,3347.1,0.55]
[1732447924747,4.38235012,3349.7,3347.3,0.55]
[1732447924978,4.38235012,3349.7,3347.5,0.55]
[1732447925486,4.38235012,3349.7,3347.4,0.55]
[1732447925689,0.49348141,3349.6,3347.3,0.57986876]
[1732447925888,0.49348141,3349.6,3347.3,0.93920052]
[1732447926055,0.49348141,3349.6,3347.3,0.57986876]
[1732447926475,0.49348141,3349.6,3347.4,0.35933176]
[1732447926677,0.43681212,3349.5,3347.5,0.57986676]
[1732447926990,0.02801378,3349.4,3347.5,0.57986676]
[1732447927214,0.02801378,3349.4,3347.5,0.55]
[1732447927420,0.43681212,3349.5,3347.3,0.36094989]
[1732447927603,0.02803823,3349.3,3347.2,0.55]
[1732447927808,0.43114519,3349.4,3347.2,0.55]
[1732447928116,0.02803823,3349.3,3347.2,0.55]
[1732447928424,0.02803823,3349.3,3347.1,0.55]
[1732447928630,0.02803823,3349.3,3347.2,0.22733579]
[1732447928782,0.02803823,3349.3,3347.3,0.55]
[1732447929117,3.87463975,3349.2,3347.2,0.22733579]
[1732447929295,3.87463975,3349.2,3347.1,0.55]
[1732447929496,0.02798322,3349.1,3347.1,0.55]
[1732447929805,3.87463975,3349.0,3347.1,0.90933176]
[1732447930118,3.87463975,3349.0,3347.3,0.55]
[1732447930291,0.02798322,3348.9,3348.2,3.0]